bitfinex/quotes_SOLUSD_20241220
["timestamp","ask_amount","ask_price","bid_price","bid_amount"]
[1734687598576,25.48008109,184.3,184.21,25.48008109]
[1734687598749,25.48008109,184.28,184.22,23.776884]
[1734687599249,25.48008109,184.26,184.22,23.776884]
[1734687600169,25.48008109,184.26,184.19,25.48008109]
[1734687600368,25.48008109,184.26,184.2,23.776884]
[1734687600677,25.48008109,184.24,184.2,23.776884]
[1734687600883,25.48008109,184.24,184.15,26.29422758]
[1734687601044,25.48008109,184.2,184.11,25.48008109]
[1734687601248,25.48008109,184.18,184.11,25.48008109]
[1734687602786,9.778,184.22,184.09,25.48008109]
[1734687602945,25.48008109,184.17,184.09,25.48008109]
[1734687603151,25.48008109,184.19,184.11,25.48008109]
[1734687603762,9.778,184.22,184.13,25.48008109]
[1734687603963,5.7254,184.27,184.19,25.48008109]
[1734687603964,25.48008109,184.27,184.19,25.48008109]
[1734687604183,9.4653,184.28,184.19,25.48008109]
[1734687604485,3.29221399,184.26,184.2,23.776884]
[1734687604854,9.4653,184.28,184.2,23.776884]
[1734687605054,9.4653,184.28,184.22,23.776884]
[1734687605261,25.48008109,184.27,184.19,25.48008109]
[1734687605579,25.48008109,184.25,184.18,23.776884]
[1734687605754,25.48008109,184.23,184.18,23.776884]
[1734687606081,25.48008109,184.27,184.19,25.48008109]
[1734687606288,25.48008109,184.31,184.24,23.776884]
[1734687606456,3.18526676,184.32,184.26,23.776884]
[1734687606888,3.18526676,184.32,184.17,49.25696509]
[1734687606889,25.48008109,184.27,184.17,49.25696509]
[1734687607058,25.48008109,184.27,184.19,25.48008109]
[1734687607264,25.48008109,184.27,184.2,23.776884]
[1734687607478,25.48008109,184.25,184.17,26.29424794]
[1734687607668,25.48008109,184.25,184.15,25.48008109]
[1734687607862,25.48008109,184.23,184.15,25.48008109]
[1734687608186,25.48008109,184.17,184.09,25.48008109]
[1734687608482,25.48008109,184.15,184.07,25.48008109]
[1734687609492,25.48008109,184.1,184.03,25.48008109]
[1734687609647,25.48008109,184.08,183.99,25.48008109]
[1734687609851,25.48008109,184.06,183.97,25.48008109]
[1734687610080,25.48008109,184.04,183.95,47.20705409]
[1734687610384,25.48008109,184.02,183.95,25.48008109]
[1734687610956,9.6665,184.09,183.98,41.49674949]
[1734687611262,41.49674949,184.06,183.98,41.49674949]
[1734687611868,41.49674949,184.08,184.0,41.49674949]
[1734687612076,9.6665,184.09,184.0,41.49674949]
[1734687612488,41.49674949,184.12,184.04,41.49674949]
[1734687612786,41.49674949,184.12,184.02,65.27363349]
[1734687612952,41.49674949,184.12,184.04,41.49674949]
[1734687613666,14.94119075,184.14,184.05,23.776884]
[1734687613667,54.43642743,184.14,184.05,23.776884]
[1734687613864,41.49674949,184.12,184.04,41.49674949]
[1734687614060,54.43642743,184.14,184.06,41.49674949]
[1734687614358,12.93967794,184.14,184.07,23.776884]
[1734687614556,41.49674949,184.19,184.1,41.49674949]
[1734687614768,41.49674949,184.19,184.11,23.776884]
[1734687614966,41.49674949,184.17,184.08,41.49674949]
[1734687615258,3.25070876,184.16,184.08,41.49674949]
[1734687615978,3.25070876,184.16,184.09,23.776884]
[1734687616484,3.25070876,184.16,184.1,41.49674949]
[1734687616684,3.25070876,184.16,184.11,23.776884]
[1734687616856,41.49674949,184.15,184.06,41.49674949]
[1734687617052,41.49674949,184.15,184.0,0.81483601]
[1734687617053,41.49674949,184.09,184.0,0.81483601]
[1734687617286,41.49674949,184.14,183.98,41.49674949]
[1734687617287,41.49674949,184.05,183.98,41.49674949]
[1734687617777,41.49674949,184.07,183.98,41.49674949]
[1734687617981,41.49674949,184.09,184.02,41.49674949]
[1734687618179,9.5346,184.13,184.06,41.49674949]
[1734687618476,3.25070876,184.16,184.08,41.49674949]
[1734687618991,3.25070876,184.16,184.09,23.776884]
[1734687619356,41.49674949,184.17,184.1,41.49674949]
[1734687619575,41.49674949,184.17,184.11,23.776884]
[1734687619883,8.9393,184.19,184.11,23.776884]
[1734687619884,50.43604949,184.19,184.11,23.776884]
[1734687620063,41.49674949,184.21,184.13,23.776884]
[1734687620394,50.62564949,184.25,184.18,41.49674949]
[1734687620561,50.62564949,184.25,184.19,23.776884]
[1734687620764,41.49674949,184.25,184.19,23.776884]
[1734687621067,3.67,184.29,184.22,41.49674949]
[1734687621461,41.49674949,184.27,184.19,23.776884]
[1734687621665,41.49674949,184.27,184.2,41.49674949]
[1734687621862,41.49674949,184.27,184.21,23.776884]
[1734687623084,41.49674949,184.25,184.17,23.776884]
[1734687623285,41.49674949,184.21,184.14,41.49674949]
[1734687623459,41.49674949,184.21,184.12,41.49674949]
[1734687623663,13.5663,184.28,184.07,19.4026]
[1734687623664,41.49674949,184.19,184.1,41.49674949]
[1734687624070,41.49674949,184.17,184.1,41.49674949]
[1734687624464,41.49674949,184.15,184.08,41.49674949]
[1734687624669,41.49674949,184.21,184.12,41.49674949]
[1734687625059,9.5088,184.22,184.14,41.49674949]
[1734687625264,43.53286137,184.25,184.16,41.49674949]
[1734687625489,41.49674949,184.25,184.18,41.49674949]
[1734687625873,41.49674949,184.25,184.19,23.776884]
[1734687626185,3.18162194,184.24,184.19,23.776884]
[1734687626831,41.49674949,184.27,184.19,23.776884]
[1734687627095,44.82439813,184.27,184.21,23.776884]
[1734687627971,41.49674949,184.25,184.18,41.49674949]
[1734687628185,41.49674949,184.25,184.17,23.776884]
[1734687628374,3.32764864,184.27,184.14,41.49674949]
[1734687628375,41.49674949,184.23,184.14,41.49674949]
[1734687629591,41.49674949,184.23,184.15,23.776884]
[1734687629786,41.49674949,184.23,184.16,41.49674949]
[1734687629987,41.49674949,184.25,184.17,23.776884]
[1734687630293,41.49674949,184.23,184.17,23.776884]
[1734687631195,41.49674949,184.21,184.13,0.81426319]
[1734687631394,41.49674949,184.19,184.1,41.49674949]
[1734687631706,41.49674949,184.19,184.12,41.49674949]
[1734687631872,41.49674949,184.23,184.14,41.49674949]
[1734687632079,41.49674949,184.25,184.16,41.49674949]
[1734687632278,41.49674949,184.25,184.17,0.81422827]
[1734687632492,41.49674949,184.25,184.16,41.49674949]
[1734687632795,41.49674949,184.25,184.18,23.776884]
[1734687632993,41.49674949,184.29,184.22,23.776884]
[1734687633215,50.54704949,184.33,184.25,41.49674949]
[1734687633402,41.49674949,184.37,184.29,41.49674949]
[1734687633597,41.49674949,184.35,184.28,23.776884]
[1734687634703,41.49674949,184.37,184.29,42.31056617]
[1734687634898,50.54704949,184.39,184.3,23.776884]
[1734687635101,44.79278074,184.37,184.3,23.776884]
[1734687635426,41.49674949,184.35,184.3,23.776884]
[1734687636722,41.49674949,184.35,184.28,23.776884]
[1734687637423,41.49674949,184.31,184.23,41.49674949]
[1734687637609,41.49674949,184.29,184.21,41.49674949]
[1734687637813,41.49674949,184.27,184.19,41.49674949]
[1734687638507,41.49674949,184.29,184.21,41.49674949]
[1734687638694,13.5615,184.35,184.19,0.81413797]
[1734687638695,41.49674949,184.31,184.23,41.49674949]
[1734687638896,41.49674949,184.31,184.21,41.49674949]
[1734687639120,41.49674949,184.31,184.23,41.49674949]
[1734687639330,41.49674949,184.31,184.24,23.776884]
[1734687640819,41.49674949,184.25,184.15,41.49674949]
[1734687641019,41.49674949,184.2,184.11,41.49674949]
[1734687641224,41.49674949,184.18,184.11,41.49674949]
[1734687641418,41.49674949,184.18,184.09,41.49674949]
[1734687642312,41.49674949,184.14,184.07,41.49674949]
[1734687642506,41.49674949,184.14,184.03,21.719848]
[1734687642507,41.49674949,184.1,184.03,21.719848]
[1734687642712,41.49674949,184.06,184.03,21.719848]
[1734687643011,41.49674949,184.06,183.97,49.4959195]
[1734687643423,41.49674949,184.04,183.97,7.99917001]
[1734687644646,41.49674949,184.04,183.97,49.4959195]
[1734687645136,41.49674949,184.06,183.97,49.4959195]
[1734687645624,41.49674949,184.04,183.97,49.4959195]
[1734687645929,41.49674949,184.04,183.97,41.49674949]
[1734687646530,41.49674949,184.04,183.98,23.776884]
[1734687646717,41.49674949,184.04,183.97,41.49674949]
[1734687646919,4.642e-05,184.11,184.03,93.22879898]
[1734687647217,3.21952087,184.3,184.12,30.0]
[1734687647417,41.49674949,184.29,184.13,0.81397549]
[1734687647940,3.21952087,184.3,184.22,23.776884]
[1734687648099,3.21952087,184.3,184.22,24.59085653]
[1734687648303,3.21952087,184.3,184.23,0.81389633]
[1734687648527,3.21952087,184.3,184.22,23.776884]
[1734687648826,3.21952087,184.3,184.23,41.49674949]
[1734687649008,3.21952087,184.3,184.24,23.776884]
[1734687649721,44.71627036,184.3,184.21,41.49674949]
[1734687649922,41.49674949,184.28,184.19,41.49674949]
[1734687650241,41.49674949,184.24,184.15,41.49674949]
[1734687650736,41.49674949,184.26,184.17,41.49674949]
[1734687651034,44.71627036,184.3,184.21,41.49674949]
[1734687651631,44.71627036,184.3,184.22,23.776884]
[1734687651869,3.21952087,184.3,184.24,23.776884]
[1734687652131,3.21952087,184.3,184.23,41.49674949]
[1734687655017,41.49674949,184.28,184.19,41.49674949]
[1734687655615,41.49674949,184.25,184.16,41.49674949]
[1734687656346,41.49674949,184.25,184.17,23.776884]
[1734687656948,41.49674949,184.25,184.16,41.49674949]
[1734687657530,41.49674949,184.27,184.18,41.49674949]
[1734687657732,3.21952087,184.3,184.16,41.49674949]
[1734687657733,41.49674949,184.25,184.16,41.49674949]
[1734687658115,41.49674949,184.25,184.17,23.776884]
[1734687658623,41.49674949,184.25,184.18,41.49674949]
[1734687659933,41.49674949,184.19,184.07,21.715675]
[1734687660127,41.49674949,184.15,184.05,41.49674949]
[1734687660325,41.49674949,184.15,184.07,41.49674949]
[1734687660846,41.49674949,184.19,184.09,41.49674949]
[1734687661154,41.49674949,184.17,184.09,41.49674949]
[1734687661735,41.49674949,184.13,184.05,41.49674949]
[1734687661932,41.49674949,184.09,184.01,41.49674949]
[1734687662138,41.49674949,184.09,183.97,0.81489503]
[1734687662139,41.49674949,184.04,183.97,41.49674949]
[1734687662340,41.49674949,184.04,183.95,41.49674949]
[1734687662557,41.49674949,184.02,183.95,41.49674949]
[1734687663029,41.49674949,184.04,183.95,41.49674949]
[1734687663764,41.49674949,184.04,183.97,41.49674949]
[1734687664053,41.49674949,184.04,183.92,14.40748564]
[1734687664054,61.49674949,184.1,184.01,41.49674949]
[1734687664253,20.0,184.1,184.03,41.49674949]
[1734687664557,41.49674949,184.12,184.03,41.49674949]
[1734687664946,7.2836,184.13,184.06,23.776884]
[1734687665150,41.49674949,184.12,184.06,23.776884]
[1734687665641,41.49674949,184.12,184.03,41.49674949]
[1734687665846,41.49674949,184.1,184.01,65.27363349]
[1734687666145,41.49674949,184.08,184.01,41.49674949]
[1734687666358,41.49674949,184.06,183.96,41.49674949]
[1734687666539,41.49674949,183.97,183.83,17.8331]
[1734687666742,41.49674949,183.94,183.86,41.49674949]
[1734687666921,41.49674949,183.92,183.79,13.6023]
[1734687667336,41.49674949,183.92,183.8,0.8157929]
[1734687667559,41.49674949,183.9,183.82,41.49674949]
[1734687667723,41.49674949,183.86,183.78,41.49674949]
[1734687667931,41.49674949,183.84,183.71,13.608]
[1734687668252,41.49674949,183.84,183.76,41.49674949]
[1734687668449,41.49674949,183.86,183.78,41.49674949]
[1734687668736,41.49674949,183.91,183.83,41.49674949]
[1734687668943,48.48234949,183.96,183.87,41.49674949]
[1734687668944,41.49674949,183.95,183.87,41.49674949]
[1734687669470,41.49674949,183.97,183.89,41.49674949]
[1734687669748,41.49674949,183.97,183.9,23.776884]
[1734687670355,41.49674949,183.93,183.86,23.776884]
[1734687670645,41.49674949,183.95,183.87,41.49674949]
[1734687670849,41.49674949,183.97,183.88,23.776884]
[1734687671156,41.49674949,183.97,183.9,23.776884]
[1734687672145,41.49674949,183.95,183.87,41.49674949]
[1734687672343,41.49674949,183.95,183.88,23.776884]
[1734687672662,44.76705556,183.99,183.92,23.776884]
[1734687672821,41.49674949,183.97,183.9,23.776884]
[1734687673020,41.49674949,183.93,183.85,41.49674949]
[1734687673250,41.49674949,183.91,183.83,41.49674949]
[1734687673431,41.49674949,183.89,183.81,41.49674949]
[1734687673839,41.49674949,183.91,183.83,41.49674949]
[1734687674231,41.49674949,183.93,183.85,41.49674949]
[1734687674634,41.49674949,183.91,183.81,41.49674949]
[1734687674850,41.49674949,183.96,183.81,41.49674949]
[1734687674851,41.49674949,183.89,183.81,41.49674949]
[1734687675048,41.49674949,183.91,183.81,41.49674949]
[1734687675253,46.49674949,183.91,183.81,41.49674949]
[1734687675444,46.49674949,183.91,183.83,41.49674949]
[1734687676124,5.0,183.91,183.86,23.776884]
[1734687677051,5.0,183.91,183.88,23.776884]
[1734687677759,5.0,183.91,183.89,41.49674949]
[1734687678055,5.0,183.91,183.9,23.776884]
[1734687678358,41.49674949,184.03,183.93,20.0]
[1734687678535,41.49674949,184.03,183.97,23.776884]
[1734687678931,41.49674949,184.03,183.96,41.49674949]
[1734687679252,41.49674949,183.99,183.91,20.0]
[1734687679448,41.49674949,183.99,183.9,41.49674949]
[1734687679652,41.49674949,183.97,183.9,41.49674949]
[1734687680260,41.49674949,183.99,183.91,23.776884]
[1734687680739,41.49674949,183.99,183.93,23.776884]
[1734687681062,41.49674949,184.01,183.95,23.776884]
[1734687681939,41.49674949,183.96,183.86,55.09334949]
[1734687682130,7.2221,184.04,183.86,55.09334949]
[1734687682131,41.49674949,183.93,183.86,41.49674949]
[1734687682333,41.49674949,183.95,183.86,41.49674949]
[1734687683544,41.49674949,183.95,183.88,41.49674949]
[1734687684059,41.49674949,183.95,183.87,23.776884]
[1734687684660,41.49674949,183.93,183.87,23.776884]
[1734687685171,41.49674949,183.91,183.82,41.49674949]
[1734687685536,41.49674949,183.93,183.86,41.49674949]
[1734687685736,41.49674949,183.95,183.86,41.49674949]
[1734687686170,46.49674949,183.95,183.88,41.49674949]
[1734687686776,46.49674949,183.95,183.89,23.776884]
[1734687686981,5.0,183.95,183.91,23.776884]
[1734687688373,5.0,183.95,183.88,41.49674949]
[1734687688581,0.26,183.95,183.93,41.49674949]
[1734687688736,3.3217542,184.08,183.97,20.0]
[1734687688942,41.49674949,184.1,184.02,41.49674949]
[1734687689169,6.8033,184.12,183.98,0.81496224]
[1734687689170,41.49674949,184.14,184.06,41.49674949]
[1734687689408,41.49674949,184.12,184.06,41.49674949]
[1734687689581,41.49674949,184.07,183.99,41.49674949]
[1734687690073,3.22546674,184.13,183.98,41.49674949]
[1734687690074,41.49674949,184.06,183.98,41.49674949]
[1734687690376,41.49674949,184.04,183.96,41.49674949]
[1734687691064,41.49674949,184.04,183.97,23.776884]
[1734687691262,41.49674949,184.02,183.95,41.49674949]
[1734687691571,41.49674949,183.98,183.91,41.49674949]
[1734687691780,41.49674949,183.97,183.89,41.49674949]
[1734687692674,41.49674949,183.99,183.91,41.49674949]
[1734687693189,41.49674949,183.97,183.91,41.49674949]
[1734687693474,16.83960983,184.03,183.85,41.49674949]
[1734687693475,41.49674949,183.92,183.85,41.49674949]
[1734687693675,41.49674949,183.89,183.81,41.49674949]
[1734687693864,41.49674949,183.88,183.8,41.49674949]
[1734687694043,41.49674949,183.84,183.78,41.49674949]
[1734687694247,20.0,183.93,183.78,41.49674949]
[1734687694248,41.49674949,183.86,183.78,41.49674949]
[1734687694864,41.49674949,183.84,183.78,41.49674949]
[1734687695045,41.49674949,183.79,183.72,41.49674949]
[1734687695250,41.49674949,183.76,183.64,0.81636684]
[1734687695453,41.49674949,183.75,183.67,41.49674949]
[1734687695686,23.776884,183.86,183.63,14.4303582]
[1734687695687,41.49674949,183.76,183.68,41.49674949]
[1734687696169,41.49674949,183.76,183.63,14.4303582]
[1734687696170,41.49674949,183.74,183.67,41.49674949]
[1734687696375,41.49674949,183.71,183.63,41.49674949]
[1734687696543,41.49674949,183.73,183.65,41.49674949]
[1734687696753,41.49674949,183.7,183.63,41.49674949]
[1734687697449,41.49674949,183.78,183.58,41.49674949]
[1734687697450,41.49674949,183.66,183.58,41.49674949]
[1734687697649,41.49674949,183.65,183.57,41.49674949]
[1734687697861,7.0828,183.71,183.57,41.49674949]
[1734687698147,41.49674949,183.62,183.54,41.49674949]
[1734687698349,41.49674949,183.59,183.51,41.49674949]
[1734687699975,41.49674949,183.57,183.49,41.49674949]
[1734687700164,41.49674949,183.55,183.47,41.49674949]
[1734687700365,41.49674949,183.53,183.45,41.49674949]
[1734687700786,44.79600884,183.57,183.49,41.49674949]
[1734687701298,5.0,183.59,183.53,41.49674949]
[1734687701591,5.0,183.59,183.54,23.776884]
[1734687702464,41.49674949,183.57,183.49,41.49674949]
[1734687702996,46.49674949,183.59,183.51,41.49674949]
[1734687703289,46.49674949,183.59,183.49,41.49674949]
[1734687703290,41.49674949,183.57,183.49,41.49674949]
[1734687703788,41.49674949,183.57,183.5,23.776884]
[1734687704285,5.0,183.59,183.53,41.49674949]
[1734687704585,5.0,183.59,183.54,23.776884]
[1734687704793,6.7989,183.55,183.45,41.49674949]
[1734687704976,41.49674949,183.58,183.49,41.49674949]
[1734687706159,41.49674949,183.56,183.47,41.49674949]
[1734687706367,41.49674949,183.54,183.45,41.49674949]
[1734687707988,41.49674949,183.56,183.47,41.49674949]
[1734687708180,5.0,183.59,183.42,55.72614949]
[1734687708181,5.0,183.59,183.51,41.49674949]
[1734687708790,5.0,183.59,183.54,23.776884]
[1734687710265,5.0,183.59,183.57,41.49674949]
[1734687710477,5.0,183.59,183.56,23.776884]
[1734687715797,0.1801,183.59,183.58,43.776884]
[1734687715987,41.49674949,183.73,183.62,20.0]
[1734687716188,41.49674949,183.71,183.63,41.49674949]
[1734687716379,41.49674949,183.69,183.61,41.49674949]
[1734687716901,41.49674949,183.67,183.61,20.0]
[1734687717214,41.49674949,183.67,183.59,41.49674949]
[1734687718182,41.49674949,183.67,183.6,23.776884]
[1734687718795,3.1967683,183.74,183.63,41.49674949]
[1734687718796,41.49674949,183.71,183.63,41.49674949]
[1734687719315,41.49674949,183.73,183.65,41.49674949]
[1734687719607,41.49674949,183.73,183.66,23.776884]
[1734687720102,41.49674949,183.75,183.68,23.776884]
[1734687721175,10.01657393,183.77,183.63,0.81642818]
[1734687721176,41.49674949,183.71,183.63,41.49674949]
[1734687721992,41.49674949,183.69,183.61,41.49674949]
[1734687722195,41.49674949,183.67,183.59,41.49674949]
[1734687722400,13.6047,183.76,183.53,0.81669828]
[1734687722401,41.49674949,183.65,183.57,41.49674949]
[1734687722580,41.49674949,183.63,183.55,41.49674949]
[1734687723282,41.49674949,183.65,183.57,41.49674949]
[1734687723808,41.49674949,183.67,183.59,41.49674949]
[1734687724001,41.49674949,183.67,183.6,23.776884]
[1734687724313,41.49674949,183.67,183.61,41.49674949]
[1734687724599,41.49674949,183.69,183.61,41.49674949]
[1734687724986,41.49674949,183.69,183.62,23.776884]
[1734687725401,41.49674949,183.65,183.57,42.31351815]
[1734687725608,41.49674949,183.64,183.56,41.49674949]
[1734687726507,14.98702759,183.73,183.51,55.11934949]
[1734687726508,41.49674949,183.73,183.62,41.49674949]
[1734687726692,41.49674949,183.73,183.65,23.776884]
[1734687727405,41.49674949,183.69,183.62,41.49674949]
[1734687727611,41.49674949,183.68,183.61,23.776884]
[1734687727815,41.49674949,183.66,183.58,41.49674949]
[1734687728180,13.6056,183.75,183.56,41.49674949]
[1734687728181,41.49674949,183.64,183.56,41.49674949]
[1734687728511,41.49674949,183.6,183.52,41.49674949]
[1734687729612,41.49674949,183.62,183.54,41.49674949]
[1734687730026,6.8442,183.63,183.56,41.49674949]
[1734687730191,6.8442,183.63,183.57,23.776884]
[1734687730694,6.8442,183.63,183.59,23.776884]
[1734687730898,20.0,183.65,183.59,23.776884]
[1734687731208,20.0,183.65,183.58,41.49674949]
[1734687731410,41.49674949,183.64,183.56,41.49674949]
[1734687731609,20.0,183.65,183.58,41.49674949]
[1734687732107,20.0,183.65,183.59,23.776884]
[1734687732297,20.0,183.65,183.58,41.49674949]
[1734687732610,41.49674949,183.64,183.55,65.27363349]
[1734687732787,20.0,183.65,183.58,23.776884]
[1734687732987,3.18988021,183.67,183.61,41.49674949]
[1734687733183,7.4546,183.69,183.63,41.49674949]
[1734687733385,46.15334949,183.78,183.67,41.49674949]
[1734687733386,48.92024949,183.76,183.67,41.49674949]
[1734687733720,41.49674949,183.72,183.63,41.49674949]
[1734687733930,41.49674949,183.72,183.64,23.776884]
[1734687734590,20.0,183.69,183.61,41.49674949]
[1734687734789,41.49674949,183.68,183.61,41.49674949]
[1734687734989,41.49674949,183.7,183.61,41.49674949]
[1734687735996,41.49674949,183.68,183.61,41.49674949]
[1734687736198,41.49674949,183.64,183.57,41.49674949]
[1734687736499,41.49674949,183.68,183.59,41.49674949]
[1734687736697,41.49674949,183.66,183.59,41.49674949]
[1734687737593,20.0,183.68,183.61,41.49674949]
[1734687738097,61.49674949,183.68,183.61,41.49674949]
[1734687738298,41.49674949,183.7,183.62,23.776884]
[1734687738494,41.49674949,183.7,183.63,41.49674949]
[1734687738797,41.49674949,183.7,183.64,23.776884]
[1734687738995,1.50554016,183.72,183.49,13.624]
[1734687738996,7.0183,183.64,183.49,13.624]
[1734687739303,41.49674949,183.63,183.54,41.49674949]
[1734687739616,41.49674949,183.63,183.56,41.49674949]
[1734687739822,7.0183,183.64,183.56,41.49674949]
[1734687740494,7.0183,183.64,183.52,0.81702562]
[1734687740495,7.0183,183.64,183.59,23.776884]
[1734687740701,41.49674949,183.67,183.6,41.49674949]
[1734687740913,41.49674949,183.67,183.58,41.49674949]
[1734687741512,48.69334949,183.69,183.61,23.776884]
[1734687741712,20.0,183.66,183.61,23.776884]
[1734687742015,7.1966,183.69,183.57,23.776884]
[1734687742205,41.49674949,183.67,183.6,23.776884]
[1734687742400,7.1966,183.69,183.57,23.776884]
[1734687742401,41.49674949,183.65,183.57,41.49674949]
[1734687742720,41.49674949,183.63,183.55,41.49674949]
[1734687743019,41.49674949,183.63,183.56,23.776884]
[1734687744214,41.49674949,183.61,183.56,23.776884]
[1734687744435,41.49674949,183.61,183.53,41.49674949]
[1734687745043,41.49674949,183.65,183.57,41.49674949]
[1734687745745,41.49674949,183.65,183.58,23.776884]
[1734687746436,41.49674949,183.65,183.57,23.776884]
[1734687746867,48.69334949,183.69,183.6,41.49674949]
[1734687747071,48.69334949,183.69,183.61,23.776884]
[1734687747238,41.49674949,183.67,183.61,23.776884]
[1734687747637,41.49674949,183.65,183.58,43.44250334]
[1734687747835,41.49674949,183.65,183.59,23.776884]
[1734687748244,48.69334949,183.69,183.48,17.9567]
[1734687748245,41.49674949,183.61,183.48,17.9567]
[1734687748448,41.49674949,183.57,183.48,59.45344949]
[1734687748644,41.49674949,183.57,183.49,41.49674949]
[1734687748856,41.49674949,183.59,183.51,41.49674949]
[1734687749136,41.49674949,183.67,183.56,41.49674949]
[1734687749346,48.69334949,183.69,183.6,41.49674949]
[1734687749841,41.49674949,183.67,183.6,41.49674949]
[1734687750042,7.1966,183.69,183.63,23.776884]
[1734687750253,41.49674949,183.73,183.65,23.776884]
[1734687750451,41.49674949,183.73,183.64,42.31338759]
[1734687750452,48.39704949,183.75,183.66,42.31322168]
[1734687750737,41.49674949,183.79,183.7,41.49674949]
[1734687750942,8.43528139,183.8,183.77,23.776884]
[1734687751142,8.43528139,183.8,183.79,23.776884]
[1734687751350,8.43528139,183.8,183.78,41.49674949]
[1734687751563,8.43528139,183.8,183.79,23.776884]
[1734687751962,41.49674949,183.85,183.79,23.776884]
[1734687752142,6.9003,183.87,183.74,41.49674949]
[1734687752143,41.49674949,183.81,183.74,41.49674949]
[1734687752339,41.49674949,183.81,183.72,41.49674949]
[1734687752667,41.49674949,183.81,183.73,23.776884]
[1734687753259,41.49674949,183.79,183.72,23.776884]
[1734687753658,41.49674949,183.81,183.74,23.776884]
[1734687755054,41.49674949,183.85,183.78,23.776884]
[1734687758178,41.49674949,183.81,183.73,41.49674949]
[1734687759056,41.49674949,183.83,183.75,41.49674949]
[1734687759465,41.49674949,183.83,183.76,24.59292386]
[1734687759669,41.49674949,183.85,183.77,41.49674949]
[1734687760073,41.49674949,183.85,183.78,23.776884]
[1734687760783,48.39704949,183.87,183.8,23.776884]
[1734687760989,1.63690454,183.9,183.85,41.49674949]
[1734687761283,1.63690454,183.9,183.86,23.776884]
[1734687761582,48.12334949,183.93,183.86,23.776884]
[1734687761786,4.2743,183.98,183.86,23.776884]
[1734687761787,41.49674949,183.98,183.91,23.776884]
[1734687762981,41.49674949,183.92,183.84,41.49674949]
[1734687763148,41.49674949,183.92,183.85,23.776884]
[1734687765567,1.64344673,183.94,183.86,41.49674949]
[1734687765568,41.49674949,183.94,183.86,41.49674949]
[1734687765772,41.49674949,183.94,183.87,23.776884]
[1734687766072,41.49674949,183.96,183.89,23.776884]
[1734687766652,41.49674949,183.96,183.86,41.49674949]
[1734687767078,41.49674949,183.92,183.87,23.776884]
[1734687767374,41.49674949,183.92,183.84,41.49674949]
[1734687767580,41.49674949,183.92,183.85,23.776884]
[1734687767881,41.49674949,183.94,183.86,41.49674949]
[1734687768092,41.49674949,183.94,183.87,23.776884]
[1734687768379,6.6266,183.99,183.93,23.776884]
[1734687768996,41.49674949,184.03,183.95,23.776884]
[1734687769287,41.49674949,184.03,183.96,41.49674949]
[1734687769491,44.68891612,184.03,183.97,23.776884]
[1734687769655,41.49674949,183.98,183.84,20.6]
[1734687769993,41.49674949,183.89,183.76,0.6]
[1734687770164,41.49674949,183.82,183.74,41.49674949]
[1734687770364,41.49674949,183.78,183.67,5.51195249]
[1734687770785,20.0,183.86,183.67,5.51195249]
[1734687771085,20.0,183.86,183.67,19.12265249]
[1734687771271,20.0,183.86,183.67,46.34535249]
[1734687771681,41.49674949,183.79,183.71,41.49674949]
[1734687771871,41.49674949,183.81,183.73,41.49674949]
[1734687772662,41.49674949,183.83,183.75,41.49674949]
[1734687773664,41.49674949,183.85,183.77,41.49674949]
[1734687773898,41.49674949,183.85,183.78,23.776884]
[1734687774060,41.49674949,183.83,183.75,41.49674949]
[1734687774261,41.49674949,183.83,183.73,41.49674949]
[1734687775012,41.49674949,183.83,183.75,41.49674949]
[1734687775864,41.49674949,183.85,183.78,23.776884]
[1734687776583,41.49674949,183.87,183.8,23.776884]
[1734687778799,41.49674949,183.87,183.79,65.27363349]
[1734687779295,41.49674949,183.85,183.78,23.776884]
[1734687779475,20.4985,183.89,183.78,23.776884]
[1734687779476,41.49674949,183.87,183.79,41.49674949]
[1734687779675,48.40014949,183.89,183.82,23.776884]
[1734687780607,5.0,183.87,183.82,23.776884]
[1734687780898,5.0,183.87,183.83,41.49674949]
[1734687781200,5.0,183.87,183.82,0.6]
[1734687781571,5.0,183.87,183.83,23.776884]
[1734687781771,5.0,183.87,183.82,0.6]
[1734687783805,5.0,183.87,183.83,65.27363349]
[1734687784095,5.0,183.87,183.86,24.376884]
[1734687784407,4.1224,183.99,183.86,25.19239431]
[1734687784408,41.49674949,183.99,183.86,25.19239431]
[1734687784615,3.33655099,183.98,183.92,23.776884]
[1734687784772,41.49674949,183.99,183.92,23.776884]
[1734687785700,41.49674949,184.05,183.92,23.776884]
[1734687785701,6.8661,184.06,183.97,41.49674949]
[1734687785875,48.36284949,184.06,183.98,23.776884]
[1734687786197,41.49674949,184.04,183.97,41.49674949]
[1734687786408,41.49674949,184.04,183.95,1.41512712]